[Event "Titled Tuesday Blitz February 21 Early 2023"]
[White "Bacrot, Etienne"]
[Black "Andreikin, Dmitry"]
[WhiteFideId "605506"]
[BlackFideId "4158814"]
[WhiteElo "2667"]
[BlackElo "2729"]
[Result "0-1"]
[Round "11"]
[TimeControl "180+2"]
[Date "2023.02.21"]
[WhiteClock "0:00:11"]
[BlackClock "0:00:26"]

1. d4 {[%clk 0:03:00]}  Nf6 {[%clk 0:02:54]} 2. Nf3 {[%clk 0:03:00]}  e6 {[%clk 0:02:51]} 3. c4 {[%clk 0:03:00]}  d5 {[%clk 0:02:46]} 4. Nc3 {[%clk 0:03:00]}  c6 {[%clk 0:02:46]} 5. Bg5 {[%clk 0:02:59]}  h6 {[%clk 0:02:44]} 6. Bxf6 {[%clk 0:02:58]}  Qxf6 {[%clk 0:02:43]} 7. Qb3 {[%clk 0:02:58]}  Qe7 {[%clk 0:02:39]} 8. g3 {[%clk 0:02:58]}  Qb4 {[%clk 0:02:36]} 9. Bg2 {[%clk 0:02:41]}  Nd7 {[%clk 0:02:29]} 10. O-O {[%clk 0:02:23]}  dxc4 {[%clk 0:02:29]} 11. Qc2 {[%clk 0:02:23]}  Be7 {[%clk 0:02:23]} 12. Rad1 {[%clk 0:02:11]}  O-O {[%clk 0:02:18]} 13. Nd2 {[%clk 0:02:05]}  Nb6 {[%clk 0:02:12]} 14. a3 {[%clk 0:02:04]}  Qa5 {[%clk 0:02:08]} 15. Nce4 {[%clk 0:02:02]}  e5 {[%clk 0:01:56]} 16. Nxc4 {[%clk 0:01:51]}  Nxc4 {[%clk 0:01:56]} 17. Qxc4 {[%clk 0:01:52]}  Be6 {[%clk 0:01:55]} 18. Qc2 {[%clk 0:01:49]}  exd4 {[%clk 0:01:42]} 19. Rxd4 {[%clk 0:01:48]}  Rad8 {[%clk 0:01:42]} 20. Rfd1 {[%clk 0:01:45]}  Rxd4 {[%clk 0:01:32]} 21. Rxd4 {[%clk 0:01:45]}  Qe1+ {[%clk 0:01:28]} 22. Bf1 {[%clk 0:01:41]}  Rd8 {[%clk 0:01:29]} 23. Rxd8+ {[%clk 0:01:29]}  Bxd8 {[%clk 0:01:30]} 24. Qc3 {[%clk 0:01:19]}  Qb1 {[%clk 0:01:19]} 25. Nd2 {[%clk 0:01:14]}  Qd1 {[%clk 0:01:17]} 26. Qd3 {[%clk 0:00:53]}  Bf6 {[%clk 0:01:17]} 27. Ne4 {[%clk 0:00:50]}  Qa1 {[%clk 0:01:02]} 28. Nxf6+ {[%clk 0:00:35]}  gxf6 {[%clk 0:01:03]} 29. b4 {[%clk 0:00:25]}  Bh3 {[%clk 0:00:54]} 30. e4 {[%clk 0:00:25]}  b5 {[%clk 0:00:49]} 31. g4 {[%clk 0:00:14]}  Bxf1 {[%clk 0:00:46]} 32. Qxf1 {[%clk 0:00:14]}  Qxa3 {[%clk 0:00:47]} 33. Qe1 {[%clk 0:00:14]}  c5 {[%clk 0:00:39]} 34. bxc5 {[%clk 0:00:13]}  Qxc5 {[%clk 0:00:40]} 35. Qd2 {[%clk 0:00:13]}  Kg7 {[%clk 0:00:37]} 36. h4 {[%clk 0:00:12]}  b4 {[%clk 0:00:37]} 37. Qd3 {[%clk 0:00:08]}  Qc3 {[%clk 0:00:33]} 38. Qd6 {[%clk 0:00:08]}  Qe1+ {[%clk 0:00:28]} 39. Kh2 {[%clk 0:00:07]}  Qxf2+ {[%clk 0:00:27]} 40. Kh3 {[%clk 0:00:07]}  Qf3+ {[%clk 0:00:27]} 41. Qg3 {[%clk 0:00:06]}  Qxg3+ {[%clk 0:00:25]} 42. Kxg3 {[%clk 0:00:07]}  b3 {[%clk 0:00:26]} 43. g5 {[%clk 0:00:08]}  b2 {[%clk 0:00:25]} 44. g6 {[%clk 0:00:09]}  fxg6 {[%clk 0:00:25]} 45. h5 {[%clk 0:00:10]}  gxh5 {[%clk 0:00:25]} 46. e5 {[%clk 0:00:11]}  fxe5 {[%clk 0:00:26]} 0-1


[Site "https://www.chess.com"]

[Event "Titled Tuesday Blitz February 21 Early 2023"]
[White "Howell, David W L"]
[Black "Rustemov, Alexander"]
[WhiteFideId "410608"]
[BlackFideId "4119002"]
[WhiteElo "2677"]
[BlackElo "2525"]
[Result "1-0"]
[Round "11"]
[TimeControl "180+2"]
[Date "2023.02.21"]
[WhiteClock "0:00:14"]
[BlackClock "0:00:06"]

1. c4 {[%clk 0:02:59]}  g6 {[%clk 0:02:57]} 2. d4 {[%clk 0:02:51]}  Bg7 {[%clk 0:02:57]} 3. Nf3 {[%clk 0:02:52]}  d6 {[%clk 0:02:55]} 4. g3 {[%clk 0:02:52]}  c5 {[%clk 0:02:51]} 5. Bg2 {[%clk 0:02:49]}  Nc6 {[%clk 0:02:41]} 6. dxc5 {[%clk 0:02:40]}  Qa5+ {[%clk 0:02:41]} 7. Bd2 {[%clk 0:02:14]}  Qxc5 {[%clk 0:02:41]} 8. Bc3 {[%clk 0:02:15]}  Bxc3+ {[%clk 0:02:34]} 9. Nxc3 {[%clk 0:02:16]}  Qxc4 {[%clk 0:02:34]} 10. Nd5 {[%clk 0:02:09]}  Kf8 {[%clk 0:02:27]} 11. O-O {[%clk 0:01:31]}  Be6 {[%clk 0:02:18]} 12. Nd2 {[%clk 0:01:22]}  Qd4 {[%clk 0:02:08]} 13. e3 {[%clk 0:01:20]}  Qc5 {[%clk 0:01:58]} 14. Rc1 {[%clk 0:01:15]}  Qa5 {[%clk 0:01:57]} 15. b4 {[%clk 0:01:11]}  Qd8 {[%clk 0:01:55]} 16. b5 {[%clk 0:01:08]}  Na5 {[%clk 0:01:54]} 17. Nc7 {[%clk 0:00:56]}  Rc8 {[%clk 0:01:52]} 18. Nxe6+ {[%clk 0:00:53]}  fxe6 {[%clk 0:01:52]} 19. Nf3 {[%clk 0:00:50]}  Rxc1 {[%clk 0:01:32]} 20. Qxc1 {[%clk 0:00:51]}  h6 {[%clk 0:01:08]} 21. Nd4 {[%clk 0:00:46]}  Kf7 {[%clk 0:01:08]} 22. Bh3 {[%clk 0:00:39]}  e5 {[%clk 0:01:08]} 23. Ne6 {[%clk 0:00:37]}  Qe8 {[%clk 0:00:59]} 24. f4 {[%clk 0:00:36]}  Nf6 {[%clk 0:00:58]} 25. fxe5 {[%clk 0:00:32]}  dxe5 {[%clk 0:00:59]} 26. a4 {[%clk 0:00:31]}  Qb8 {[%clk 0:00:55]} 27. Qd2 {[%clk 0:00:24]}  b6 {[%clk 0:00:54]} 28. Qa2 {[%clk 0:00:24]}  h5 {[%clk 0:00:34]} 29. Ng5+ {[%clk 0:00:20]}  Kg7 {[%clk 0:00:35]} 30. Qf7+ {[%clk 0:00:20]}  Kh6 {[%clk 0:00:35]} 31. Qxe7 {[%clk 0:00:21]}  Kxg5 {[%clk 0:00:29]} 32. Rxf6 {[%clk 0:00:18]}  Kh6 {[%clk 0:00:25]} 33. Bf5 {[%clk 0:00:16]}  Rg8 {[%clk 0:00:25]} 34. Qf7 {[%clk 0:00:13]}  Qe8 {[%clk 0:00:06]} 35. Rxg6+ {[%clk 0:00:13]}  Rxg6 {[%clk 0:00:06]} 36. Qxe8 {[%clk 0:00:14]} 1-0


[Site "https://www.chess.com"]

[Event "Titled Tuesday Blitz February 21 Early 2023"]
[White "Pichot, Alan"]
[Black "Shimanov, Aleksandr"]
[WhiteFideId "110973"]
[BlackFideId "4198603"]
[WhiteElo "2638"]
[BlackElo "2581"]
[Result "0-1"]
[Round "11"]
[TimeControl "180+2"]
[Date "2023.02.21"]
[WhiteClock "0:01:18"]
[BlackClock "0:01:08"]

1. e4 {[%clk 0:02:49]}  d5 {[%clk 0:02:56]} 2. exd5 {[%clk 0:02:49]}  Qxd5 {[%clk 0:02:57]} 3. Nc3 {[%clk 0:02:49]}  Qe5+ {[%clk 0:02:57]} 4. Be2 {[%clk 0:02:49]}  Bg4 {[%clk 0:02:57]} 5. d4 {[%clk 0:02:47]}  Bxe2 {[%clk 0:02:57]} 6. Ngxe2 {[%clk 0:02:48]}  Qa5 {[%clk 0:02:57]} 7. O-O {[%clk 0:02:48]}  Nf6 {[%clk 0:02:56]} 8. b4 {[%clk 0:02:43]}  Qh5 {[%clk 0:02:55]} 9. Nf4 {[%clk 0:02:38]}  Qxd1 {[%clk 0:02:54]} 10. Rxd1 {[%clk 0:02:39]}  e6 {[%clk 0:02:53]} 11. a3 {[%clk 0:02:37]}  Nbd7 {[%clk 0:02:47]} 12. Nb5 {[%clk 0:02:32]}  Bd6 {[%clk 0:02:39]} 13. c4 {[%clk 0:02:32]}  a6 {[%clk 0:02:32]} 14. Nc3 {[%clk 0:02:32]}  Nb6 {[%clk 0:02:07]} 15. d5 {[%clk 0:02:20]}  Nxc4 {[%clk 0:01:52]} 16. dxe6 {[%clk 0:02:18]}  Be5 {[%clk 0:01:51]} 17. Rd3 {[%clk 0:02:00]}  Rd8 {[%clk 0:01:43]} 18. Ra2 {[%clk 0:01:27]}  Rxd3 {[%clk 0:01:37]} 19. Nxd3 {[%clk 0:01:27]}  Bxc3 {[%clk 0:01:36]} 20. exf7+ {[%clk 0:01:24]}  Kxf7 {[%clk 0:01:33]} 21. Rc2 {[%clk 0:01:25]}  Nd5 {[%clk 0:01:30]} 22. Nf4 {[%clk 0:01:25]}  Re8 {[%clk 0:01:24]} 23. g3 {[%clk 0:01:22]}  Ncb6 {[%clk 0:01:14]} 24. a4 {[%clk 0:01:18]}  Nxf4 {[%clk 0:01:10]} 25. Bxf4 {[%clk 0:01:18]}  Nxa4 {[%clk 0:01:09]} 26. Bxc7 {[%clk 0:01:18]}  b5 {[%clk 0:01:08]} 0-1


[Site "https://www.chess.com"]

[Event "Titled Tuesday Blitz February 21 Early 2023"]
[White "Kukhmazov, Arsen"]
[Black "Yilmaz, Mustafa"]
[WhiteFideId "24108260"]
[BlackFideId "6302718"]
[WhiteElo "2512"]
[BlackElo "2641"]
[Result "0-1"]
[Round "11"]
[TimeControl "180+2"]
[Date "2023.02.21"]
[WhiteClock "0:00:05"]
[BlackClock "0:00:18"]

1. d4 {[%clk 0:03:00]}  Nf6 {[%clk 0:02:59]} 2. c4 {[%clk 0:03:01]}  e6 {[%clk 0:02:57]} 3. Nf3 {[%clk 0:03:01]}  c5 {[%clk 0:02:57]} 4. d5 {[%clk 0:03:01]}  d6 {[%clk 0:02:57]} 5. Nc3 {[%clk 0:03:00]}  exd5 {[%clk 0:02:58]} 6. cxd5 {[%clk 0:03:01]}  g6 {[%clk 0:02:58]} 7. Bf4 {[%clk 0:03:01]}  Bg7 {[%clk 0:02:58]} 8. Qa4+ {[%clk 0:03:01]}  Bd7 {[%clk 0:02:59]} 9. Qb3 {[%clk 0:03:01]}  b5 {[%clk 0:02:59]} 10. Bxd6 {[%clk 0:03:02]}  Qb6 {[%clk 0:02:59]} 11. Be5 {[%clk 0:03:02]}  O-O {[%clk 0:02:59]} 12. e3 {[%clk 0:03:03]}  c4 {[%clk 0:02:56]} 13. Qd1 {[%clk 0:03:03]}  b4 {[%clk 0:02:52]} 14. Nb1 {[%clk 0:03:04]}  Bb5 {[%clk 0:02:51]} 15. Be2 {[%clk 0:03:03]}  Nbd7 {[%clk 0:02:48]} 16. Bd4 {[%clk 0:02:43]}  Qd6 {[%clk 0:02:41]} 17. a4 {[%clk 0:02:38]}  Ba6 {[%clk 0:02:28]} 18. Nbd2 {[%clk 0:02:28]}  Rfc8 {[%clk 0:02:21]} 19. Rc1 {[%clk 0:02:25]}  c3 {[%clk 0:01:55]} 20. bxc3 {[%clk 0:02:24]}  Bxe2 {[%clk 0:01:55]} 21. Qxe2 {[%clk 0:02:19]}  bxc3 {[%clk 0:01:35]} 22. Rxc3 {[%clk 0:02:12]}  Rxc3 {[%clk 0:01:35]} 23. Bxc3 {[%clk 0:02:13]}  Rc8 {[%clk 0:01:35]} 24. Qd3 {[%clk 0:01:22]}  Qa3 {[%clk 0:00:51]} 25. Nb1 {[%clk 0:01:06]}  Qc1+ {[%clk 0:00:51]} 26. Qd1 {[%clk 0:01:06]}  Rxc3 {[%clk 0:00:50]} 27. Nxc3 {[%clk 0:01:06]}  Qxc3+ {[%clk 0:00:51]} 28. Kf1 {[%clk 0:01:01]}  Qc4+ {[%clk 0:00:47]} 29. Kg1 {[%clk 0:00:52]}  Nxd5 {[%clk 0:00:46]} 30. g3 {[%clk 0:00:45]}  Nc5 {[%clk 0:00:37]} 31. Kg2 {[%clk 0:00:40]}  Nxa4 {[%clk 0:00:36]} 32. Nd2 {[%clk 0:00:24]}  Qa2 {[%clk 0:00:29]} 33. Qc1 {[%clk 0:00:20]}  Nac3 {[%clk 0:00:26]} 34. Re1 {[%clk 0:00:17]}  Nb4 {[%clk 0:00:23]} 35. Nb1 {[%clk 0:00:09]}  Nd3 {[%clk 0:00:19]} 36. Nxc3 {[%clk 0:00:08]}  Qc4 {[%clk 0:00:19]} 37. Qd2 {[%clk 0:00:03]}  Nxe1+ {[%clk 0:00:19]} 38. Qxe1 {[%clk 0:00:04]}  Bxc3 {[%clk 0:00:19]} 39. Qd1 {[%clk 0:00:04]}  Qc6+ {[%clk 0:00:18]} 40. Kg1 {[%clk 0:00:05]}  a5 {[%clk 0:00:18]} 0-1


[Site "https://www.chess.com"]

[Event "Titled Tuesday Blitz February 21 Early 2023"]
[White "Vokhidov, Shamsiddin"]
[Black "Ahmadzada, Ahmad"]
[WhiteFideId "14204223"]
[BlackFideId "13413007"]
[WhiteElo "2586"]
[BlackElo "2488"]
[Result "1/2-1/2"]
[Round "11"]
[TimeControl "180+2"]
[Date "2023.02.21"]
[WhiteClock "0:00:43"]
[BlackClock "0:00:03"]

1. e4 {[%clk 0:03:00]}  c5 {[%clk 0:02:57]} 2. Nf3 {[%clk 0:03:00]}  e6 {[%clk 0:02:58]} 3. Nc3 {[%clk 0:03:01]}  a6 {[%clk 0:02:56]} 4. d4 {[%clk 0:03:01]}  cxd4 {[%clk 0:02:57]} 5. Nxd4 {[%clk 0:03:02]}  d6 {[%clk 0:02:54]} 6. g4 {[%clk 0:02:59]}  b5 {[%clk 0:02:53]} 7. a3 {[%clk 0:02:59]}  Bb7 {[%clk 0:02:52]} 8. g5 {[%clk 0:02:59]}  Ne7 {[%clk 0:02:46]} 9. h4 {[%clk 0:02:58]}  Nbc6 {[%clk 0:02:45]} 10. Be3 {[%clk 0:02:57]}  Rc8 {[%clk 0:02:41]} 11. Be2 {[%clk 0:02:56]}  d5 {[%clk 0:02:28]} 12. exd5 {[%clk 0:02:43]}  Nxd4 {[%clk 0:02:18]} 13. Qxd4 {[%clk 0:02:42]}  Nxd5 {[%clk 0:02:18]} 14. Bf3 {[%clk 0:02:34]}  Nxe3 {[%clk 0:01:56]} 15. Qxe3 {[%clk 0:02:34]}  Bc5 {[%clk 0:01:56]} 16. Qe2 {[%clk 0:02:34]}  Bxf3 {[%clk 0:01:53]} 17. Qxf3 {[%clk 0:02:35]}  Qd4 {[%clk 0:01:23]} 18. Rd1 {[%clk 0:02:18]}  Qe5+ {[%clk 0:01:14]} 19. Qe4 {[%clk 0:02:17]}  Qc7 {[%clk 0:00:54]} 20. Ne2 {[%clk 0:01:54]}  Qc6 {[%clk 0:00:47]} 21. Qxc6+ {[%clk 0:01:52]}  Rxc6 {[%clk 0:00:47]} 22. c3 {[%clk 0:01:49]}  Ke7 {[%clk 0:00:46]} 23. Rh3 {[%clk 0:01:48]}  Rd6 {[%clk 0:00:40]} 24. Rxd6 {[%clk 0:01:47]}  Bxd6 {[%clk 0:00:41]} 25. Nd4 {[%clk 0:01:46]}  Rc8 {[%clk 0:00:32]} 26. Ke2 {[%clk 0:01:44]}  Rc5 {[%clk 0:00:29]} 27. Rd3 {[%clk 0:01:37]}  Re5+ {[%clk 0:00:25]} 28. Kf3 {[%clk 0:01:35]}  Rc5 {[%clk 0:00:23]} 29. Kg4 {[%clk 0:01:35]}  Rc4 {[%clk 0:00:21]} 30. f4 {[%clk 0:01:34]}  g6 {[%clk 0:00:19]} 31. Kf3 {[%clk 0:01:32]}  e5 {[%clk 0:00:12]} 32. Re3 {[%clk 0:01:29]}  f6 {[%clk 0:00:08]} 33. fxe5 {[%clk 0:01:22]}  Bxe5 {[%clk 0:00:07]} 34. Ke2 {[%clk 0:01:12]}  Kf7 {[%clk 0:00:04]} 35. Nf3 {[%clk 0:01:11]}  Bf4 {[%clk 0:00:04]} 36. Rd3 {[%clk 0:01:09]}  Re4+ {[%clk 0:00:04]} 37. Kf2 {[%clk 0:01:09]}  Bc1 {[%clk 0:00:04]} 38. b4 {[%clk 0:00:57]}  Bxa3 {[%clk 0:00:04]} 39. Rd7+ {[%clk 0:00:47]}  Re7 {[%clk 0:00:03]} 40. Rd6 {[%clk 0:00:47]}  Re6 {[%clk 0:00:04]} 41. Rd7+ {[%clk 0:00:47]}  Re7 {[%clk 0:00:04]} 42. Rd6 {[%clk 0:00:44]}  Re6 {[%clk 0:00:03]} 43. Rd7+ {[%clk 0:00:43]}  Re7 {[%clk 0:00:03]} 1/2-1/2


[Site "https://www.chess.com"]

[Event "Titled Tuesday Blitz February 21 Early 2023"]
[White "Fernandez Guillen, Ernesto J."]
[Black "Chigaev, Maksim"]
[WhiteFideId "3512428"]
[BlackFideId "4108116"]
[WhiteElo "2477"]
[BlackElo "2628"]
[Result "0-1"]
[Round "11"]
[TimeControl "180+2"]
[Date "2023.02.21"]
[WhiteClock "0:00:02"]
[BlackClock "0:00:12"]

1. e4 {[%clk 0:02:49]}  c6 {[%clk 0:02:55]} 2. d4 {[%clk 0:02:48]}  d5 {[%clk 0:02:56]} 3. e5 {[%clk 0:02:49]}  Bf5 {[%clk 0:02:56]} 4. c3 {[%clk 0:02:49]}  e6 {[%clk 0:02:52]} 5. Bd3 {[%clk 0:02:45]}  Bxd3 {[%clk 0:02:49]} 6. Qxd3 {[%clk 0:02:45]}  c5 {[%clk 0:02:49]} 7. Ne2 {[%clk 0:02:37]}  Nc6 {[%clk 0:02:49]} 8. O-O {[%clk 0:02:37]}  Nge7 {[%clk 0:02:49]} 9. Nd2 {[%clk 0:02:36]}  Nf5 {[%clk 0:02:46]} 10. g4 {[%clk 0:02:35]}  Nfe7 {[%clk 0:02:39]} 11. f4 {[%clk 0:02:35]}  h5 {[%clk 0:02:39]} 12. f5 {[%clk 0:02:35]}  hxg4 {[%clk 0:02:28]} 13. fxe6 {[%clk 0:02:35]}  fxe6 {[%clk 0:02:29]} 14. Nf4 {[%clk 0:02:35]}  Qd7 {[%clk 0:02:29]} 15. Ng6 {[%clk 0:02:34]}  Rg8 {[%clk 0:02:25]} 16. Rf4 {[%clk 0:01:39]}  O-O-O {[%clk 0:02:20]} 17. Rxg4 {[%clk 0:01:35]}  Nxg6 {[%clk 0:02:14]} 18. Qxg6 {[%clk 0:01:36]}  Ne7 {[%clk 0:02:05]} 19. Qf7 {[%clk 0:01:27]}  Rh8 {[%clk 0:02:06]} 20. Nf3 {[%clk 0:01:26]}  Nf5 {[%clk 0:02:03]} 21. Qg6 {[%clk 0:01:20]}  Be7 {[%clk 0:02:00]} 22. Bf4 {[%clk 0:01:13]}  Rdf8 {[%clk 0:02:00]} 23. Rf1 {[%clk 0:01:10]}  Kb8 {[%clk 0:01:54]} 24. Rg2 {[%clk 0:00:51]}  cxd4 {[%clk 0:01:36]} 25. cxd4 {[%clk 0:00:52]}  Bd8 {[%clk 0:01:36]} 26. Bd2 {[%clk 0:00:45]}  Bb6 {[%clk 0:01:34]} 27. Rg4 {[%clk 0:00:45]}  a5 {[%clk 0:01:33]} 28. Rf2 {[%clk 0:00:44]}  Qb5 {[%clk 0:01:07]} 29. Qxe6 {[%clk 0:00:41]}  Ka7 {[%clk 0:00:37]} 30. a4 {[%clk 0:00:25]}  Qxb2 {[%clk 0:00:30]} 31. Qxd5 {[%clk 0:00:17]}  Nxd4 {[%clk 0:00:20]} 32. Rxd4 {[%clk 0:00:08]}  Rxf3 {[%clk 0:00:18]} 33. Rxf3 {[%clk 0:00:05]}  Qxd2 {[%clk 0:00:12]} 34. Qxa5+ {[%clk 0:00:02]}  Qxa5 {[%clk 0:00:12]} 0-1


[Site "https://www.chess.com"]

[Event "Titled Tuesday Blitz February 21 Early 2023"]
[White "Livaic, Leon"]
[Black "Fier, Alexandr"]
[WhiteFideId "14531534"]
[BlackFideId "2107139"]
[WhiteElo "2579"]
[BlackElo "2589"]
[Result "1-0"]
[Round "11"]
[TimeControl "180+2"]
[Date "2023.02.21"]
[WhiteClock "0:00:56"]
[BlackClock "0:01:54"]

1. e4 {[%clk 0:03:00]}  c5 {[%clk 0:02:59]} 2. Nf3 {[%clk 0:03:01]}  Nf6 {[%clk 0:02:59]} 3. d3 {[%clk 0:03:00]}  Nc6 {[%clk 0:02:58]} 4. Nbd2 {[%clk 0:03:00]}  d5 {[%clk 0:02:58]} 5. g3 {[%clk 0:03:00]}  g6 {[%clk 0:02:58]} 6. Bg2 {[%clk 0:03:00]}  Bg7 {[%clk 0:02:59]} 7. O-O {[%clk 0:03:01]}  O-O {[%clk 0:03:00]} 8. exd5 {[%clk 0:03:01]}  Nxd5 {[%clk 0:03:00]} 9. Re1 {[%clk 0:03:01]}  e5 {[%clk 0:02:57]} 10. Nc4 {[%clk 0:03:01]}  f6 {[%clk 0:02:57]} 11. c3 {[%clk 0:03:01]}  Bf5 {[%clk 0:02:55]} 12. Nh4 {[%clk 0:02:44]}  Be6 {[%clk 0:02:53]} 13. a4 {[%clk 0:02:44]}  Bf7 {[%clk 0:02:53]} 14. a5 {[%clk 0:02:44]}  Qd7 {[%clk 0:02:53]} 15. Qa4 {[%clk 0:02:40]}  Rad8 {[%clk 0:02:50]} 16. Qb5 {[%clk 0:02:34]}  Qe7 {[%clk 0:02:41]} 17. a6 {[%clk 0:02:31]}  Rb8 {[%clk 0:02:26]} 18. axb7 {[%clk 0:02:31]}  Qxb7 {[%clk 0:02:27]} 19. Qxb7 {[%clk 0:02:29]}  Rxb7 {[%clk 0:02:27]} 20. Nd6 {[%clk 0:02:29]}  Rd7 {[%clk 0:02:27]} 21. Nxf7 {[%clk 0:02:29]}  Kxf7 {[%clk 0:02:27]} 22. f4 {[%clk 0:02:15]}  Rfd8 {[%clk 0:02:22]} 23. Nf3 {[%clk 0:01:53]}  exf4 {[%clk 0:02:20]} 24. gxf4 {[%clk 0:01:54]}  Nde7 {[%clk 0:02:17]} 25. Be3 {[%clk 0:01:54]}  Rxd3 {[%clk 0:02:15]} 26. Bxc5 {[%clk 0:01:54]}  Nd5 {[%clk 0:02:14]} 27. f5 {[%clk 0:01:45]}  gxf5 {[%clk 0:02:10]} 28. Ra6 {[%clk 0:01:37]}  Ne5 {[%clk 0:02:06]} 29. Rxa7+ {[%clk 0:01:36]}  Kg8 {[%clk 0:02:04]} 30. Nh4 {[%clk 0:01:27]}  Nf4 {[%clk 0:01:55]} 31. Nxf5 {[%clk 0:01:26]}  Bf8 {[%clk 0:01:55]} 32. Bxf8 {[%clk 0:01:14]}  Rxf8 {[%clk 0:01:56]} 33. Be4 {[%clk 0:01:12]}  Nf3+ {[%clk 0:01:56]} 34. Bxf3 {[%clk 0:01:12]}  Rxf3 {[%clk 0:01:57]} 35. Nh6+ {[%clk 0:00:55]}  Kh8 {[%clk 0:01:58]} 36. Ree7 {[%clk 0:00:55]}  Nh3+ {[%clk 0:01:53]} 37. Kg2 {[%clk 0:00:55]}  Ng5 {[%clk 0:01:54]} 38. h4 {[%clk 0:00:56]} 1-0


[Site "https://www.chess.com"]

[Event "Titled Tuesday Blitz February 21 Early 2023"]
[White "Talibov, Shiroghlan"]
[Black "Sanal, Vahap"]
[WhiteFideId "13429078"]
[BlackFideId "6300545"]
[WhiteElo "2359"]
[BlackElo "2600"]
[Result "1/2-1/2"]
[Round "11"]
[TimeControl "180+2"]
[Date "2023.02.21"]
[WhiteClock "0:00:07"]
[BlackClock "0:00:05"]

1. e4 {[%clk 0:02:56]}  e5 {[%clk 0:02:59]} 2. Nf3 {[%clk 0:02:57]}  Nc6 {[%clk 0:03:00]} 3. Bb5 {[%clk 0:02:57]}  a6 {[%clk 0:03:00]} 4. Ba4 {[%clk 0:02:57]}  Nf6 {[%clk 0:03:00]} 5. O-O {[%clk 0:02:58]}  Nxe4 {[%clk 0:03:00]} 6. Re1 {[%clk 0:02:44]}  Nc5 {[%clk 0:02:59]} 7. Bxc6 {[%clk 0:02:36]}  dxc6 {[%clk 0:02:59]} 8. Nxe5 {[%clk 0:02:35]}  Be7 {[%clk 0:02:52]} 9. d4 {[%clk 0:02:35]}  Ne6 {[%clk 0:02:52]} 10. c3 {[%clk 0:02:35]}  O-O {[%clk 0:02:52]} 11. Qf3 {[%clk 0:02:35]}  Qd5 {[%clk 0:02:42]} 12. Nd2 {[%clk 0:02:31]}  Qxf3 {[%clk 0:02:40]} 13. Ndxf3 {[%clk 0:02:32]}  Re8 {[%clk 0:02:36]} 14. Bd2 {[%clk 0:02:27]}  f6 {[%clk 0:02:33]} 15. Nd3 {[%clk 0:02:25]}  Kf7 {[%clk 0:02:33]} 16. h3 {[%clk 0:02:24]}  Rd8 {[%clk 0:02:32]} 17. Re2 {[%clk 0:02:22]}  c5 {[%clk 0:02:32]} 18. Rae1 {[%clk 0:02:21]}  Bf8 {[%clk 0:02:28]} 19. Be3 {[%clk 0:02:17]}  cxd4 {[%clk 0:02:28]} 20. Nxd4 {[%clk 0:02:18]}  Nxd4 {[%clk 0:02:28]} 21. Bxd4 {[%clk 0:02:19]}  b6 {[%clk 0:02:24]} 22. Nf4 {[%clk 0:01:53]}  c5 {[%clk 0:02:19]} 23. Be3 {[%clk 0:01:53]}  Ra7 {[%clk 0:02:13]} 24. f3 {[%clk 0:01:48]}  Rad7 {[%clk 0:02:11]} 25. g4 {[%clk 0:01:43]}  Rd1 {[%clk 0:02:10]} 26. Kf2 {[%clk 0:01:40]}  Rxe1 {[%clk 0:02:10]} 27. Kxe1 {[%clk 0:01:39]}  b5 {[%clk 0:02:09]} 28. Rd2 {[%clk 0:01:34]}  Rxd2 {[%clk 0:02:07]} 29. Kxd2 {[%clk 0:01:35]}  Bb7 {[%clk 0:02:06]} 30. Ke2 {[%clk 0:01:34]}  c4 {[%clk 0:01:53]} 31. a3 {[%clk 0:01:30]}  Bd6 {[%clk 0:01:50]} 32. Kf2 {[%clk 0:01:30]}  a5 {[%clk 0:01:38]} 33. Ne2 {[%clk 0:01:29]}  b4 {[%clk 0:01:38]} 34. axb4 {[%clk 0:01:30]}  axb4 {[%clk 0:01:38]} 35. cxb4 {[%clk 0:01:28]}  Bxb4 {[%clk 0:01:39]} 36. Nc3 {[%clk 0:01:26]}  Ke6 {[%clk 0:01:39]} 37. f4 {[%clk 0:01:23]}  f5 {[%clk 0:01:38]} 38. g5 {[%clk 0:01:13]}  Bc6 {[%clk 0:01:38]} 39. Bd4 {[%clk 0:01:08]}  Kf7 {[%clk 0:01:36]} 40. h4 {[%clk 0:01:07]}  Kg6 {[%clk 0:01:34]} 41. Kg3 {[%clk 0:01:01]}  h6 {[%clk 0:01:27]} 42. Kh3 {[%clk 0:00:55]}  Bf3 {[%clk 0:01:24]} 43. Kg3 {[%clk 0:00:54]}  Bg4 {[%clk 0:01:24]} 44. Nd5 {[%clk 0:00:48]}  Be1+ {[%clk 0:01:10]} 45. Bf2 {[%clk 0:00:47]}  Bd2 {[%clk 0:01:11]} 46. Be3 {[%clk 0:00:47]}  Be1+ {[%clk 0:01:00]} 47. Bf2 {[%clk 0:00:46]}  Ba5 {[%clk 0:01:01]} 48. Bb6 {[%clk 0:00:45]}  Bd2 {[%clk 0:00:46]} 49. Be3 {[%clk 0:00:45]}  Bxe3 {[%clk 0:00:34]} 50. Nxe3 {[%clk 0:00:46]}  Be2 {[%clk 0:00:34]} 51. Nd5 {[%clk 0:00:41]}  Bd3 {[%clk 0:00:33]} 52. Nb4 {[%clk 0:00:20]}  Be4 {[%clk 0:00:30]} 53. Na6 {[%clk 0:00:21]}  Kf7 {[%clk 0:00:30]} 54. Nc5 {[%clk 0:00:21]}  Bc2 {[%clk 0:00:28]} 55. Nd7 {[%clk 0:00:21]}  Ke6 {[%clk 0:00:24]} 56. Ne5 {[%clk 0:00:21]}  Kd5 {[%clk 0:00:23]} 57. gxh6 {[%clk 0:00:18]}  gxh6 {[%clk 0:00:24]} 58. h5 {[%clk 0:00:19]}  Bd1 {[%clk 0:00:22]} 59. Kh4 {[%clk 0:00:18]}  Ke4 {[%clk 0:00:19]} 60. Nf7 {[%clk 0:00:09]}  Kxf4 {[%clk 0:00:19]} 61. Nxh6 {[%clk 0:00:09]}  Ke4 {[%clk 0:00:18]} 62. Nf7 {[%clk 0:00:07]}  Bxh5 {[%clk 0:00:05]} 63. Nd6+ {[%clk 0:00:05]}  Kd5 {[%clk 0:00:03]} 64. Nxf5 {[%clk 0:00:05]}  Be2 {[%clk 0:00:03]} 65. Ne3+ {[%clk 0:00:05]}  Kd4 {[%clk 0:00:04]} 66. Nxc4 {[%clk 0:00:06]}  Kxc4 {[%clk 0:00:04]} 67. b3+ {[%clk 0:00:07]}  Kxb3 {[%clk 0:00:05]} 1/2-1/2


[Site "https://www.chess.com"]